[Event "Titled Tuesday Blitz August 15 Early 2023"]
[White "SmirnovAlexandrA"]
[Black "Salinas Herrera, Pablo"]
[BlackFideId "3407128"]
[WhiteElo "2622"]
[BlackElo "2824"]
[Result "1-0"]
[Round "7"]
[TimeControl "180+1"]
[Date "2023.08.15"]
[WhiteClock "0:00:06"]
[BlackClock "0:00:05"]
[Board "41"]

1. e4 {[%clk 0:03:00]}  c5 {[%clk 0:02:53]} 2. Nf3 {[%clk 0:03:00]}  e6 {[%clk 0:02:54]} 3. g3 {[%clk 0:02:58]}  Nc6 {[%clk 0:02:54]} 4. Bg2 {[%clk 0:02:58]}  Nf6 {[%clk 0:02:54]} 5. d3 {[%clk 0:02:56]}  d5 {[%clk 0:02:54]} 6. Qe2 {[%clk 0:02:56]}  Be7 {[%clk 0:02:55]} 7. O-O {[%clk 0:02:56]}  O-O {[%clk 0:02:55]} 8. e5 {[%clk 0:02:53]}  Nd7 {[%clk 0:02:56]} 9. c4 {[%clk 0:02:53]}  d4 {[%clk 0:02:54]} 10. h4 {[%clk 0:02:50]}  Rb8 {[%clk 0:02:54]} 11. Bf4 {[%clk 0:02:44]}  a6 {[%clk 0:02:55]} 12. a4 {[%clk 0:02:42]}  b5 {[%clk 0:02:53]} 13. axb5 {[%clk 0:02:43]}  axb5 {[%clk 0:02:53]} 14. cxb5 {[%clk 0:02:28]}  Rxb5 {[%clk 0:02:54]} 15. Na3 {[%clk 0:02:28]}  Rb8 {[%clk 0:02:49]} 16. Nc4 {[%clk 0:02:18]}  Nb6 {[%clk 0:02:49]} 17. b3 {[%clk 0:02:11]}  Nd5 {[%clk 0:02:48]} 18. Ng5 {[%clk 0:01:57]}  Rxb3 {[%clk 0:02:43]} 19. Qh5 {[%clk 0:01:45]}  h6 {[%clk 0:02:43]} 20. Be4 {[%clk 0:01:38]}  f5 {[%clk 0:02:32]} 21. exf6 {[%clk 0:01:37]}  Nxf6 {[%clk 0:02:32]} 22. Qg6 {[%clk 0:01:32]}  hxg5 {[%clk 0:02:32]} 23. Bxc6 {[%clk 0:00:43]}  gxf4 {[%clk 0:02:32]} 24. h5 {[%clk 0:00:44]}  Nd5 {[%clk 0:01:30]} 25. h6 {[%clk 0:00:42]}  Bf6 {[%clk 0:01:31]} 26. Ra7 {[%clk 0:00:37]}  Ne7 {[%clk 0:00:54]} 27. Qg4 {[%clk 0:00:35]}  e5 {[%clk 0:00:50]} 28. Bd7 {[%clk 0:00:30]}  Bxd7 {[%clk 0:00:19]} 29. Rxd7 {[%clk 0:00:31]}  Qe8 {[%clk 0:00:20]} 30. Kg2 {[%clk 0:00:21]}  Qg6 {[%clk 0:00:20]} 31. Qe6+ {[%clk 0:00:22]}  Qf7 {[%clk 0:00:18]} 32. Qg4 {[%clk 0:00:21]}  Rxd3 {[%clk 0:00:16]} 33. Nd6 {[%clk 0:00:19]}  Qd5+ {[%clk 0:00:16]} 34. Kg1 {[%clk 0:00:16]}  Qf3 {[%clk 0:00:07]} 35. Qe6+ {[%clk 0:00:11]}  Kh7 {[%clk 0:00:07]} 36. hxg7 {[%clk 0:00:08]}  Kxg7 {[%clk 0:00:06]} 37. Nf5+ {[%clk 0:00:06]}  Kg6 {[%clk 0:00:06]} 38. Nxe7+ {[%clk 0:00:06]}  Kg5 {[%clk 0:00:04]} 39. Qf5+ {[%clk 0:00:06]}  Kh6 {[%clk 0:00:05]} 40. Qg6# {[%clk 0:00:06]} 1-0


[Site "https://www.chess.com"]

[Event "Titled Tuesday Blitz August 15 Early 2023"]
[White "Mekhitarian, Krikor Sevag"]
[Black "Papayan, Oleg"]
[WhiteFideId "2107660"]
[BlackFideId "4193911"]
[WhiteElo "2800"]
[BlackElo "2612"]
[Result "1-0"]
[Round "7"]
[TimeControl "180+1"]
[Date "2023.08.15"]
[WhiteClock "0:00:05"]
[BlackClock "0:00:05"]
[Board "43"]

1. Nf3 {[%clk 0:03:00]}  Nf6 {[%clk 0:02:58]} 2. c4 {[%clk 0:03:01]}  e6 {[%clk 0:02:58]} 3. Nc3 {[%clk 0:02:55]}  d5 {[%clk 0:02:58]} 4. cxd5 {[%clk 0:02:56]}  exd5 {[%clk 0:02:58]} 5. d4 {[%clk 0:02:57]}  c6 {[%clk 0:02:57]} 6. Bf4 {[%clk 0:02:54]}  Bd6 {[%clk 0:02:57]} 7. Bxd6 {[%clk 0:02:55]}  Qxd6 {[%clk 0:02:58]} 8. e3 {[%clk 0:02:55]}  Bf5 {[%clk 0:02:52]} 9. Nh4 {[%clk 0:02:56]}  Bg4 {[%clk 0:02:51]} 10. Qb3 {[%clk 0:02:54]}  Qc7 {[%clk 0:02:36]} 11. h3 {[%clk 0:02:51]}  Be6 {[%clk 0:02:36]} 12. Bd3 {[%clk 0:02:46]}  O-O {[%clk 0:02:35]} 13. Rc1 {[%clk 0:02:43]}  Nbd7 {[%clk 0:02:30]} 14. O-O {[%clk 0:02:40]}  Qb6 {[%clk 0:02:27]} 15. Qc2 {[%clk 0:02:40]}  h6 {[%clk 0:02:22]} 16. f4 {[%clk 0:02:31]}  Nb8 {[%clk 0:02:05]} 17. Qf2 {[%clk 0:02:23]}  Qd8 {[%clk 0:01:50]} 18. g4 {[%clk 0:02:18]}  Ne4 {[%clk 0:01:15]} 19. Bxe4 {[%clk 0:01:59]}  dxe4 {[%clk 0:01:15]} 20. b3 {[%clk 0:01:51]}  f5 {[%clk 0:01:13]} 21. gxf5 {[%clk 0:01:45]}  Bxf5 {[%clk 0:01:13]} 22. Nxf5 {[%clk 0:01:26]}  Rxf5 {[%clk 0:01:14]} 23. Nxe4 {[%clk 0:01:26]}  Qe7 {[%clk 0:01:11]} 24. Ng3 {[%clk 0:01:25]}  Ra5 {[%clk 0:01:12]} 25. e4 {[%clk 0:01:20]}  Nd7 {[%clk 0:01:10]} 26. Rce1 {[%clk 0:01:19]}  Rf8 {[%clk 0:01:07]} 27. Kh2 {[%clk 0:01:17]}  Nf6 {[%clk 0:00:49]} 28. Re2 {[%clk 0:01:07]}  g5 {[%clk 0:00:41]} 29. Nf5 {[%clk 0:00:49]}  Qh7 {[%clk 0:00:32]} 30. Nd6 {[%clk 0:00:16]}  h5 {[%clk 0:00:11]} 31. f5 {[%clk 0:00:14]}  g4 {[%clk 0:00:09]} 32. e5 {[%clk 0:00:15]}  Nd5 {[%clk 0:00:08]} 33. Qh4 {[%clk 0:00:13]}  gxh3 {[%clk 0:00:02]} 34. f6 {[%clk 0:00:10]}  Nc3 {[%clk 0:00:02]} 35. Ref2 {[%clk 0:00:08]}  Qd3 {[%clk 0:00:02]} 36. f7+ {[%clk 0:00:08]}  Kh8 {[%clk 0:00:02]} 37. Qxh5+ {[%clk 0:00:08]}  Qh7 {[%clk 0:00:03]} 38. Qf3 {[%clk 0:00:06]}  Nd5 {[%clk 0:00:03]} 39. Rg1 {[%clk 0:00:05]}  c5 {[%clk 0:00:03]} 40. Qxd5 {[%clk 0:00:03]}  b6 {[%clk 0:00:02]} 41. Qe4 {[%clk 0:00:03]}  cxd4 {[%clk 0:00:03]} 42. Qxh7+ {[%clk 0:00:03]}  Kxh7 {[%clk 0:00:04]} 43. e6 {[%clk 0:00:04]}  Re5 {[%clk 0:00:04]} 44. Rf6 {[%clk 0:00:03]}  d3 {[%clk 0:00:05]} 45. Nf5 {[%clk 0:00:04]}  d2 {[%clk 0:00:05]} 46. e7 {[%clk 0:00:05]}  Re1 {[%clk 0:00:04]} 47. exf8=Q {[%clk 0:00:05]}  Rxg1 {[%clk 0:00:05]} 48. Qh6# {[%clk 0:00:05]} 1-0


[Site "https://www.chess.com"]

[Event "Titled Tuesday Blitz August 15 Early 2023"]
[White "Wagner, Dennis"]
[Black "Ibadov, Dashgyn"]
[WhiteFideId "24650684"]
[BlackFideId "24107514"]
[WhiteElo "2771"]
[BlackElo "2609"]
[Result "1-0"]
[Round "7"]
[TimeControl "180+1"]
[Date "2023.08.15"]
[WhiteClock "0:00:03"]
[BlackClock "0:00:00"]
[Board "45"]

1. e4 {[%clk 0:03:00]}  e6 {[%clk 0:02:59]} 2. d4 {[%clk 0:03:00]}  d5 {[%clk 0:02:59]} 3. Nc3 {[%clk 0:03:00]}  Nf6 {[%clk 0:02:59]} 4. e5 {[%clk 0:03:01]}  Nfd7 {[%clk 0:02:59]} 5. f4 {[%clk 0:03:01]}  c5 {[%clk 0:03:00]} 6. Nf3 {[%clk 0:03:02]}  Nc6 {[%clk 0:03:01]} 7. Be3 {[%clk 0:03:02]}  cxd4 {[%clk 0:03:02]} 8. Nxd4 {[%clk 0:03:03]}  Bc5 {[%clk 0:03:03]} 9. Qd2 {[%clk 0:03:02]}  a6 {[%clk 0:03:03]} 10. O-O-O {[%clk 0:03:03]}  O-O {[%clk 0:03:04]} 11. Qf2 {[%clk 0:03:01]}  Bxd4 {[%clk 0:03:03]} 12. Bxd4 {[%clk 0:03:02]}  b5 {[%clk 0:03:04]} 13. Be3 {[%clk 0:02:33]}  b4 {[%clk 0:03:04]} 14. Ne2 {[%clk 0:02:32]}  a5 {[%clk 0:03:04]} 15. Ng3 {[%clk 0:02:08]}  Ba6 {[%clk 0:03:01]} 16. Nh5 {[%clk 0:01:59]}  a4 {[%clk 0:02:50]} 17. f5 {[%clk 0:01:31]}  exf5 {[%clk 0:02:38]} 18. Rxd5 {[%clk 0:01:27]}  Ncxe5 {[%clk 0:02:38]} 19. Bd4 {[%clk 0:01:07]}  Qg5+ {[%clk 0:02:33]} 20. Nf4 {[%clk 0:01:06]}  b3 {[%clk 0:02:06]} 21. Bxa6 {[%clk 0:00:19]}  bxa2 {[%clk 0:02:00]} 22. Kd2 {[%clk 0:00:15]}  Rxa6 {[%clk 0:01:49]} 23. Bxe5 {[%clk 0:00:15]}  Qe7 {[%clk 0:00:59]} 24. Bc3 {[%clk 0:00:11]}  Nb6 {[%clk 0:00:55]} 25. Qd4 {[%clk 0:00:10]}  Qg5 {[%clk 0:00:48]} 26. Rxf5 {[%clk 0:00:09]}  Nc4+ {[%clk 0:00:42]} 27. Ke2 {[%clk 0:00:06]}  Qg4+ {[%clk 0:00:35]} 28. Kf2 {[%clk 0:00:06]}  Rd6 {[%clk 0:00:35]} 29. h3 {[%clk 0:00:06]}  Qh4+ {[%clk 0:00:17]} 30. g3 {[%clk 0:00:06]}  Rxd4 {[%clk 0:00:07]} 31. gxh4 {[%clk 0:00:06]}  Re4 {[%clk 0:00:08]} 32. Nd3 {[%clk 0:00:05]}  Rfe8 {[%clk 0:00:07]} 33. Ra1 {[%clk 0:00:05]}  Re2+ {[%clk 0:00:07]} 34. Kg3 {[%clk 0:00:05]}  Rxc2 {[%clk 0:00:03]} 35. Rxa2 {[%clk 0:00:05]}  a3 {[%clk 0:00:04]} 36. Rf2 {[%clk 0:00:02]}  axb2 {[%clk 0:00:03]} 37. Bxb2 {[%clk 0:00:02]}  Re3+ {[%clk 0:00:03]} 38. Kg2 {[%clk 0:00:02]}  Rxf2+ {[%clk 0:00:00]} 39. Nxf2 {[%clk 0:00:03]} 1-0


[Site "https://www.chess.com"]

[Event "Titled Tuesday Blitz August 15 Early 2023"]
[White "Schmakel, Sam"]
[Black "Milosevic, Milos"]
[WhiteFideId "2039311"]
[BlackFideId "964875"]
[WhiteElo "2768"]
[BlackElo "2601"]
[Result "1/2-1/2"]
[Round "7"]
[TimeControl "180+1"]
[Date "2023.08.15"]
[WhiteClock "0:00:08"]
[BlackClock "0:00:15"]
[Board "46"]

1. e4 {[%clk 0:03:00]}  c6 {[%clk 0:02:59]} 2. d4 {[%clk 0:02:50]}  d5 {[%clk 0:03:00]} 3. Nc3 {[%clk 0:02:48]}  dxe4 {[%clk 0:02:59]} 4. Nge2 {[%clk 0:02:48]}  Nf6 {[%clk 0:02:49]} 5. Ng3 {[%clk 0:02:47]}  Bg4 {[%clk 0:02:36]} 6. Qd2 {[%clk 0:02:22]}  e6 {[%clk 0:02:36]} 7. Ncxe4 {[%clk 0:02:20]}  Nxe4 {[%clk 0:02:36]} 8. Nxe4 {[%clk 0:02:21]}  Bf5 {[%clk 0:02:35]} 9. Ng3 {[%clk 0:02:21]}  Bg6 {[%clk 0:02:36]} 10. h4 {[%clk 0:02:18]}  h6 {[%clk 0:02:36]} 11. h5 {[%clk 0:02:18]}  Bh7 {[%clk 0:02:36]} 12. c3 {[%clk 0:02:18]}  Bd6 {[%clk 0:02:33]} 13. Qe3 {[%clk 0:02:08]}  Nd7 {[%clk 0:02:30]} 14. Ne4 {[%clk 0:02:09]}  Bxe4 {[%clk 0:02:07]} 15. Qxe4 {[%clk 0:02:09]}  Nf6 {[%clk 0:02:06]} 16. Qf3 {[%clk 0:01:58]}  Qb6 {[%clk 0:02:00]} 17. Bc4 {[%clk 0:01:48]}  O-O {[%clk 0:01:33]} 18. O-O {[%clk 0:01:40]}  Nd5 {[%clk 0:01:27]} 19. Bd3 {[%clk 0:01:35]}  c5 {[%clk 0:01:20]} 20. dxc5 {[%clk 0:01:22]}  Bxc5 {[%clk 0:01:13]} 21. a3 {[%clk 0:00:46]}  Be7 {[%clk 0:00:56]} 22. c4 {[%clk 0:00:43]}  Nf6 {[%clk 0:00:56]} 23. b4 {[%clk 0:00:44]}  a5 {[%clk 0:00:50]} 24. c5 {[%clk 0:00:40]}  Qc7 {[%clk 0:00:49]} 25. Bf4 {[%clk 0:00:37]}  Qc6 {[%clk 0:00:40]} 26. Qe2 {[%clk 0:00:30]}  axb4 {[%clk 0:00:34]} 27. axb4 {[%clk 0:00:31]}  Nd5 {[%clk 0:00:33]} 28. Bd2 {[%clk 0:00:29]}  Bg5 {[%clk 0:00:11]} 29. Rxa8 {[%clk 0:00:06]}  Rxa8 {[%clk 0:00:11]} 30. f4 {[%clk 0:00:06]}  Bf6 {[%clk 0:00:08]} 31. Qe4 {[%clk 0:00:07]}  Ra2 {[%clk 0:00:08]} 32. Be1 {[%clk 0:00:06]}  Nc3 {[%clk 0:00:05]} 33. Qxc6 {[%clk 0:00:04]}  bxc6 {[%clk 0:00:05]} 34. Bxc3 {[%clk 0:00:04]}  Bxc3 {[%clk 0:00:06]} 35. Rb1 {[%clk 0:00:04]}  Rb2 {[%clk 0:00:06]} 36. Rxb2 {[%clk 0:00:04]}  Bxb2 {[%clk 0:00:07]} 37. b5 {[%clk 0:00:03]}  cxb5 {[%clk 0:00:07]} 38. Bxb5 {[%clk 0:00:04]}  Bd4+ {[%clk 0:00:07]} 39. Kf1 {[%clk 0:00:04]}  Bxc5 {[%clk 0:00:08]} 40. Ke2 {[%clk 0:00:04]}  Kf8 {[%clk 0:00:09]} 41. Kf3 {[%clk 0:00:05]}  Ke7 {[%clk 0:00:09]} 42. Bc4 {[%clk 0:00:05]}  f5 {[%clk 0:00:09]} 43. g4 {[%clk 0:00:05]}  Kf6 {[%clk 0:00:10]} 44. gxf5 {[%clk 0:00:05]}  exf5 {[%clk 0:00:10]} 45. Bd3 {[%clk 0:00:04]}  g5 {[%clk 0:00:11]} 46. hxg6 {[%clk 0:00:05]}  Kxg6 {[%clk 0:00:11]} 47. Kg3 {[%clk 0:00:06]}  Kf6 {[%clk 0:00:11]} 48. Kf3 {[%clk 0:00:06]}  Bd6 {[%clk 0:00:12]} 49. Bc2 {[%clk 0:00:06]}  Bxf4 {[%clk 0:00:12]} 50. Kxf4 {[%clk 0:00:06]}  h5 {[%clk 0:00:13]} 51. Bxf5 {[%clk 0:00:07]}  h4 {[%clk 0:00:14]} 52. Kg4 {[%clk 0:00:07]}  h3 {[%clk 0:00:15]} 53. Kxh3 {[%clk 0:00:08]} 1/2-1/2


[Site "https://www.chess.com"]

[Event "Titled Tuesday Blitz August 15 Early 2023"]
[White "Srihari L R"]
[Black "Onufrienko, Vladislav"]
[WhiteFideId "46617116"]
[BlackFideId "13804332"]
[WhiteElo "2762"]
[BlackElo "2579"]
[Result "1-0"]
[Round "7"]
[TimeControl "180+1"]
[Date "2023.08.15"]
[WhiteClock "0:00:50"]
[BlackClock "0:00:04"]
[Board "49"]

1. Nf3 {[%clk 0:02:57]}  Nf6 {[%clk 0:03:00]} 2. g3 {[%clk 0:02:57]}  d5 {[%clk 0:03:01]} 3. Bg2 {[%clk 0:02:58]}  c6 {[%clk 0:03:00]} 4. O-O {[%clk 0:02:58]}  Bg4 {[%clk 0:03:01]} 5. c4 {[%clk 0:02:57]}  Nbd7 {[%clk 0:03:00]} 6. d3 {[%clk 0:02:55]}  e5 {[%clk 0:02:58]} 7. cxd5 {[%clk 0:02:55]}  cxd5 {[%clk 0:02:59]} 8. Nc3 {[%clk 0:02:51]}  Be6 {[%clk 0:02:58]} 9. Ng5 {[%clk 0:02:50]}  Be7 {[%clk 0:02:50]} 10. Nxe6 {[%clk 0:02:50]}  fxe6 {[%clk 0:02:51]} 11. e4 {[%clk 0:02:50]}  d4 {[%clk 0:02:48]} 12. Ne2 {[%clk 0:02:50]}  O-O {[%clk 0:02:46]} 13. h3 {[%clk 0:02:42]}  Qb6 {[%clk 0:02:44]} 14. Rb1 {[%clk 0:02:40]}  Rac8 {[%clk 0:02:38]} 15. f4 {[%clk 0:02:38]}  Bd6 {[%clk 0:02:34]} 16. b4 {[%clk 0:02:18]}  exf4 {[%clk 0:02:32]} 17. gxf4 {[%clk 0:02:18]}  e5 {[%clk 0:02:32]} 18. f5 {[%clk 0:02:18]}  a5 {[%clk 0:02:14]} 19. a3 {[%clk 0:02:13]}  axb4 {[%clk 0:02:07]} 20. axb4 {[%clk 0:02:14]}  Qc6 {[%clk 0:01:52]} 21. Qb3+ {[%clk 0:02:07]}  Kh8 {[%clk 0:01:51]} 22. Rb2 {[%clk 0:01:56]}  b5 {[%clk 0:01:46]} 23. Bd2 {[%clk 0:01:55]}  Nb6 {[%clk 0:01:43]} 24. Rc1 {[%clk 0:01:54]}  Qd7 {[%clk 0:01:38]} 25. Rbc2 {[%clk 0:01:50]}  h6 {[%clk 0:01:28]} 26. Kh2 {[%clk 0:01:49]}  Na4 {[%clk 0:01:19]} 27. Ng1 {[%clk 0:01:45]}  Rxc2 {[%clk 0:01:05]} 28. Rxc2 {[%clk 0:01:37]}  Rc8 {[%clk 0:01:03]} 29. Rxc8+ {[%clk 0:01:36]}  Qxc8 {[%clk 0:01:04]} 30. Nf3 {[%clk 0:01:34]}  Qd7 {[%clk 0:00:32]} 31. Be1 {[%clk 0:01:24]}  Nh5 {[%clk 0:00:26]} 32. Nh4 {[%clk 0:01:22]}  Nf4 {[%clk 0:00:24]} 33. Bg3 {[%clk 0:01:22]}  Qe7 {[%clk 0:00:20]} 34. Bxf4 {[%clk 0:01:17]}  Qxh4 {[%clk 0:00:20]} 35. Bg3 {[%clk 0:01:16]}  Qe7 {[%clk 0:00:20]} 36. Qd5 {[%clk 0:01:15]}  Nc3 {[%clk 0:00:16]} 37. Qa8+ {[%clk 0:01:04]}  Kh7 {[%clk 0:00:15]} 38. Bf3 {[%clk 0:01:02]}  Qg5 {[%clk 0:00:12]} 39. h4 {[%clk 0:00:58]}  Qd2+ {[%clk 0:00:12]} 40. Kh3 {[%clk 0:00:59]}  Ne2 {[%clk 0:00:10]} 41. Bh5 {[%clk 0:00:57]}  g6 {[%clk 0:00:04]} 42. Bxg6+ {[%clk 0:00:49]}  Kg7 {[%clk 0:00:04]} 43. Qb7+ {[%clk 0:00:49]}  Kf6 {[%clk 0:00:04]} 44. Qf7# {[%clk 0:00:50]} 1-0


[Site "https://www.chess.com"]

[Event "Titled Tuesday Blitz August 15 Early 2023"]
[White "Hambleton, Aman"]
[Black "Sreyas Payyappat"]
[WhiteFideId "2606577"]
[BlackFideId "46674969"]
[WhiteElo "2759"]
[BlackElo "2567"]
[Result "0-1"]
[Round "7"]
[TimeControl "180+1"]
[Date "2023.08.15"]
[WhiteClock "0:00:01"]
[BlackClock "0:00:47"]
[Board "50"]

1. d4 {[%clk 0:02:56]}  Nf6 {[%clk 0:02:58]} 2. Bf4 {[%clk 0:02:52]}  c5 {[%clk 0:02:57]} 3. e3 {[%clk 0:02:50]}  e6 {[%clk 0:02:55]} 4. c3 {[%clk 0:02:50]}  Nc6 {[%clk 0:02:52]} 5. Nd2 {[%clk 0:02:50]}  d5 {[%clk 0:02:50]} 6. Ngf3 {[%clk 0:02:49]}  Nh5 {[%clk 0:02:49]} 7. Be5 {[%clk 0:02:44]}  Nxe5 {[%clk 0:02:46]} 8. Nxe5 {[%clk 0:02:44]}  Nf6 {[%clk 0:02:46]} 9. Ndf3 {[%clk 0:02:35]}  Bd6 {[%clk 0:02:41]} 10. dxc5 {[%clk 0:01:46]}  Bxe5 {[%clk 0:02:32]} 11. Nxe5 {[%clk 0:01:47]}  O-O {[%clk 0:02:32]} 12. Qd4 {[%clk 0:01:16]}  Qc7 {[%clk 0:02:22]} 13. Bd3 {[%clk 0:01:10]}  Bd7 {[%clk 0:02:02]} 14. O-O {[%clk 0:01:04]}  Rac8 {[%clk 0:02:00]} 15. b4 {[%clk 0:01:03]}  b6 {[%clk 0:01:55]} 16. cxb6 {[%clk 0:00:44]}  axb6 {[%clk 0:01:56]} 17. Rfc1 {[%clk 0:00:24]}  b5 {[%clk 0:01:42]} 18. Nxd7 {[%clk 0:00:08]}  Qxd7 {[%clk 0:01:41]} 19. a4 {[%clk 0:00:08]}  bxa4 {[%clk 0:01:40]} 20. b5 {[%clk 0:00:09]}  Rfe8 {[%clk 0:01:28]} 21. Qxa4 {[%clk 0:00:05]}  e5 {[%clk 0:01:27]} 22. b6 {[%clk 0:00:05]}  Qxa4 {[%clk 0:01:25]} 23. Rxa4 {[%clk 0:00:06]}  Rb8 {[%clk 0:01:22]} 24. Rb1 {[%clk 0:00:04]}  Nd7 {[%clk 0:01:20]} 25. b7 {[%clk 0:00:03]}  Nc5 {[%clk 0:01:20]} 26. Ra8 {[%clk 0:00:02]}  Nxd3 {[%clk 0:01:18]} 27. Rxb8 {[%clk 0:00:02]}  Rxb8 {[%clk 0:01:18]} 28. Ra1 {[%clk 0:00:03]}  Nc5 {[%clk 0:01:18]} 29. Ra8 {[%clk 0:00:04]}  Nd7 {[%clk 0:01:19]} 30. f4 {[%clk 0:00:02]}  f6 {[%clk 0:01:18]} 31. fxe5 {[%clk 0:00:02]}  fxe5 {[%clk 0:01:19]} 32. e4 {[%clk 0:00:02]}  dxe4 {[%clk 0:01:14]} 33. c4 {[%clk 0:00:02]}  Kf7 {[%clk 0:01:15]} 34. c5 {[%clk 0:00:02]}  Rxb7 {[%clk 0:01:08]} 35. c6 {[%clk 0:00:02]}  Rb1+ {[%clk 0:01:08]} 36. Kf2 {[%clk 0:00:03]}  Rb2+ {[%clk 0:00:47]} 37. Ke3 {[%clk 0:00:02]}  Nf6 {[%clk 0:00:48]} 38. Ra7+ {[%clk 0:00:02]}  Ke6 {[%clk 0:00:48]} 39. c7 {[%clk 0:00:03]}  Rc2 {[%clk 0:00:47]} 40. Ra6+ {[%clk 0:00:02]}  Kf5 {[%clk 0:00:47]} 41. Ra7 {[%clk 0:00:01]}  Nd5# {[%clk 0:00:47]} 0-1


[Site "https://www.chess.com"]

[Event "Titled Tuesday Blitz August 15 Early 2023"]
[White "Stribuk, Artiom"]
[Black "Akhmetov, Ayan"]
[WhiteFideId "13515659"]
[BlackFideId "13703706"]
[WhiteElo "2749"]
[BlackElo "2558"]
[Result "0-1"]
[Round "7"]
[TimeControl "180+1"]
[Date "2023.08.15"]
[WhiteClock "0:00:03"]
[BlackClock "0:00:03"]
[Board "51"]

1. c4 {[%clk 0:03:00]}  e6 {[%clk 0:02:58]} 2. Nc3 {[%clk 0:02:57]}  d5 {[%clk 0:02:58]} 3. d4 {[%clk 0:02:57]}  c5 {[%clk 0:02:59]} 4. Nf3 {[%clk 0:02:55]}  cxd4 {[%clk 0:02:55]} 5. Nxd4 {[%clk 0:02:32]}  e5 {[%clk 0:02:24]} 6. Nf3 {[%clk 0:02:32]}  d4 {[%clk 0:02:23]} 7. Nd5 {[%clk 0:02:32]}  Nc6 {[%clk 0:02:19]} 8. e3 {[%clk 0:02:32]}  Nf6 {[%clk 0:02:05]} 9. Nxf6+ {[%clk 0:02:16]}  Qxf6 {[%clk 0:02:06]} 10. exd4 {[%clk 0:02:16]}  e4 {[%clk 0:01:52]} 11. Ne5 {[%clk 0:01:49]}  Bb4+ {[%clk 0:01:38]} 12. Bd2 {[%clk 0:01:45]}  Bxd2+ {[%clk 0:01:04]} 13. Qxd2 {[%clk 0:01:46]}  Nxe5 {[%clk 0:01:04]} 14. dxe5 {[%clk 0:01:43]}  Qxe5 {[%clk 0:01:05]} 15. Be2 {[%clk 0:01:38]}  O-O {[%clk 0:01:01]} 16. O-O {[%clk 0:01:23]}  Be6 {[%clk 0:00:56]} 17. Rad1 {[%clk 0:01:23]}  f5 {[%clk 0:00:49]} 18. Qd6 {[%clk 0:00:53]}  Qxd6 {[%clk 0:00:45]} 19. Rxd6 {[%clk 0:00:53]}  Kf7 {[%clk 0:00:46]} 20. Rfd1 {[%clk 0:00:54]}  Ke7 {[%clk 0:00:44]} 21. f4 {[%clk 0:00:54]}  Rg8 {[%clk 0:00:19]} 22. h4 {[%clk 0:00:42]}  Rgc8 {[%clk 0:00:11]} 23. b3 {[%clk 0:00:35]}  Rd8 {[%clk 0:00:10]} 24. Rxd8 {[%clk 0:00:34]}  Rxd8 {[%clk 0:00:11]} 25. Rxd8 {[%clk 0:00:34]}  Kxd8 {[%clk 0:00:12]} 26. Kf2 {[%clk 0:00:35]}  Kc7 {[%clk 0:00:12]} 27. Ke3 {[%clk 0:00:35]}  Kd6 {[%clk 0:00:11]} 28. Kd4 {[%clk 0:00:36]}  b6 {[%clk 0:00:12]} 29. b4 {[%clk 0:00:34]}  Bf7 {[%clk 0:00:07]} 30. a3 {[%clk 0:00:32]}  Bg8 {[%clk 0:00:05]} 31. g3 {[%clk 0:00:31]}  Bf7 {[%clk 0:00:03]} 32. Bd1 {[%clk 0:00:31]}  Bg8 {[%clk 0:00:04]} 33. Bb3 {[%clk 0:00:32]}  Ke7 {[%clk 0:00:03]} 34. Ba4 {[%clk 0:00:20]}  Be6 {[%clk 0:00:03]} 35. Bd1 {[%clk 0:00:16]}  Kd6 {[%clk 0:00:03]} 36. c5+ {[%clk 0:00:09]}  bxc5+ {[%clk 0:00:04]} 37. bxc5+ {[%clk 0:00:10]}  Kc6 {[%clk 0:00:03]} 38. Ba4+ {[%clk 0:00:10]}  Kc7 {[%clk 0:00:04]} 39. Bb5 {[%clk 0:00:11]}  g6 {[%clk 0:00:02]} 40. Ke5 {[%clk 0:00:07]}  Bd7 {[%clk 0:00:02]} 41. Be2 {[%clk 0:00:05]}  Kc6 {[%clk 0:00:02]} 42. Kf6 {[%clk 0:00:05]}  Kxc5 {[%clk 0:00:03]} 43. Kg7 {[%clk 0:00:06]}  Kd4 {[%clk 0:00:03]} 44. Kxh7 {[%clk 0:00:06]}  Be8 {[%clk 0:00:03]} 45. Kh6 {[%clk 0:00:03]}  Ke3 {[%clk 0:00:04]} 46. Ba6 {[%clk 0:00:03]}  Kf2 {[%clk 0:00:04]} 47. h5 {[%clk 0:00:03]}  gxh5 {[%clk 0:00:03]} 48. Kg5 {[%clk 0:00:03]}  e3 {[%clk 0:00:02]} 49. Kxf5 {[%clk 0:00:03]}  Kxg3 {[%clk 0:00:02]} 50. Ke4 {[%clk 0:00:03]}  Kf2 {[%clk 0:00:03]} 51. f5 {[%clk 0:00:03]}  h4 {[%clk 0:00:03]} 52. Kf4 {[%clk 0:00:02]}  h3 {[%clk 0:00:04]} 53. f6 {[%clk 0:00:03]}  h2 {[%clk 0:00:04]} 54. Bb5 {[%clk 0:00:04]}  h1=Q {[%clk 0:00:03]} 55. Bxe8 {[%clk 0:00:04]}  Qf3+ {[%clk 0:00:04]} 56. Kg5 {[%clk 0:00:03]}  e2 {[%clk 0:00:03]} 0-1


[Site "https://www.chess.com"]